fUST/lending_fUST_20251110
["ID","MTS","AMOUNT","RATE_DAILY","PERIOD"]
[393531479,1762774245477,-500.0,0.00022733,2]
[393531480,1762774245487,-500.0,0.00022736,2]
[393531481,1762774245495,-328.4796743,0.00022736,2]
[393531482,1762774245505,-500.0,0.00022799,2]
[393531483,1762774245514,-500.0,0.00022812,3]
[393531484,1762774245524,-300.0,0.00022852,20]
[393531485,1762774245533,-300.0,0.00022852,20]
[393531486,1762774245543,-300.0,0.00022852,20]
[393531487,1762774245561,-4021.35,0.00022861,2]
[393531488,1762774245571,-4021.35,0.00022861,2]
[393531489,1762774245580,-4021.35,0.00022861,2]
[393531490,1762774245589,-500.0,0.0002299,2]
[393531491,1762774245598,-160.0,0.00022991,2]
[393531492,1762774245607,-298.37883984,0.00022995,2]
[393531493,1762774245617,-1000.0,0.00023,6]
[393531494,1762774245626,-164.0,0.00023,7]
[393531495,1762774245636,-506.113933,0.00023021,2]
[393531496,1762774245645,-512.82140284,0.00023021,2]
[393531498,1762774245654,-195.44299184,0.00023063,2]
[393531499,1762774245664,-4021.35,0.00023073,2]
[393531500,1762774245673,-500.0,0.00023086,3]
[393531501,1762774245682,-196.094384,0.00023117,10]
[393531502,1762774245691,-500.16307664,0.00023121,2]
[393531503,1762774245700,-500.0,0.00023121,2]
[393531504,1762774245709,-890.41018056,0.00023121,2]
[393531505,1762774245718,-1000.0,0.00023121,2]
[393531506,1762774245727,-1000.0,0.00023121,2]
[393531507,1762774245736,-521.05625835,0.00023121,2]
[393531508,1762774245745,-4021.35,0.00023178,2]
[393531509,1762774245755,-196.094384,0.00023186,2]
[393531510,1762774245763,-190.46769985,0.00023227,2]
[393531511,1762774245772,-4021.35,0.00023228,2]
[393531512,1762774245781,-4021.35,0.00023228,2]
[393531513,1762774245791,-4021.35,0.00023228,2]
[393531514,1762774245800,-4021.35,0.00023228,2]
[393531515,1762774245811,-4021.35,0.00023228,2]
[393531516,1762774245820,-4021.35,0.00023228,2]
[393531517,1762774245830,-4021.35,0.00023228,2]
[393531518,1762774245839,-4021.35,0.00023228,2]
[393531519,1762774245848,-4021.35,0.00023228,2]
[393531520,1762774245857,-4021.35,0.00023228,2]
[393531521,1762774245867,-4021.35,0.00023228,2]
[393531522,1762774245875,-4021.35,0.00023228,2]
[393531523,1762774245884,-4021.35,0.00023228,2]
[393531524,1762774245894,-4021.35,0.00023228,2]
[393531525,1762774245903,-4021.35,0.00023228,2]
[393531526,1762774245912,-4021.35,0.00023228,2]
[393531528,1762774245925,-4021.35,0.00023228,2]
[393531529,1762774245934,-4021.35,0.00023228,2]
[393531530,1762774245944,-4021.46543952,0.00023228,2]
[393531531,1762774245954,-359.3248839,0.00023243,2]
[393531532,1762774245963,-333.44403129,0.00023243,2]
[393531533,1762774245972,-380.69781401,0.00023243,2]
[393531534,1762774245983,-500.6983395,0.00023273,2]
[393531535,1762774245994,-500.0,0.00023273,2]
[393531536,1762774246005,-500.0,0.00023273,2]
[393531537,1762774246016,-500.0,0.00023273,2]
[393531538,1762774246027,-500.0,0.00023273,2]
[393531539,1762774246038,-500.0,0.00023273,2]
[393531540,1762774246049,-500.0,0.00023273,2]
[393531541,1762774246061,-500.0,0.00023273,2]
[393531542,1762774246071,-579.22097008,0.00023273,2]
[393531543,1762774246082,-500.0,0.00023273,2]
[393531544,1762774246092,-309.05464648,0.00023442,2]
[393531545,1762774246103,-260.0,0.00023539,2]
[393531546,1762774246113,-1500.0,0.00023668,2]
[393531547,1762774246123,-799.54342765,0.00023668,2]
[393531548,1762774246134,-196.094384,0.00023708,10]
[393531549,1762774246144,-151.0,0.000238,5]
[393531550,1762774246154,-151.0,0.000238,7]
[393531551,1762774246164,-232.60793322,0.00023821,2]
[393531552,1762774246173,-1014.46048226,0.00023821,2]
[393531553,1762774246183,-504.91348804,0.00023821,2]
[393531554,1762774246196,-1000.0,0.00023821,2]
[393531555,1762774246206,-245.57280145,0.00023821,2]
[393531556,1762774246215,-9042.68,0.00023908,3]
[393531557,1762774246224,-4521.34,0.00023908,3]
[393531558,1762774246234,-2260.66,0.00023908,3]
[393531559,1762774246245,-1130.34,0.00023908,3]
[393531560,1762774246255,-565.16,0.00023908,3]
[393531561,1762774246265,-534.01,0.00024,14]
[393531562,1762774246276,-407.15,0.00024,7]
[393531563,1762774246286,-1000.0,0.00024,7]
[393531564,1762774246296,-587.0,0.00024035,2]
[393531565,1762774246305,-196.094384,0.00024056,2]
[393531566,1762774246320,-360.0,0.00024087,2]
[393531567,1762774246330,-309.05464648,0.00024117,2]
[393531568,1762774246339,-168.0,0.00024137,2]
[393531569,1762774246349,-165.0,0.00024164,7]
[393531570,1762774246358,-298.51530536,0.00024216,2]
[393531571,1762774246368,-196.094384,0.00024299,10]
[393531572,1762774246378,-2000.0,0.00024304,2]
[393531573,1762774246388,-2000.0,0.00024304,2]
[393531574,1762774246397,-4399.0,0.00024313,2]
[393531575,1762774246407,-1500.0,0.00024368,2]
[393531576,1762774246416,-196.094384,0.00024429,3]
[393531577,1762774246426,-168.0,0.00024483,2]
[393531578,1762774246435,-168.0,0.00024592,2]
[393531579,1762774246444,-168.0,0.00024605,2]
[393531580,1762774246453,-168.0,0.00024606,2]
[393531581,1762774246462,-460.0,0.00024635,2]
[393531582,1762774246471,-380.0,0.00024658,2]
[393531583,1762774246480,-200.0,0.00024658,15]
[393531584,1762774246489,-177.25876765,0.00024695,3]
[393531585,1762774246499,-151.0,0.00024695,3]
[393531586,1762774246508,-151.0,0.00024695,3]
[393531587,1762774246518,-151.0,0.00024695,3]
[393531588,1762774246527,-174.34657869,0.00024695,3]
[393531589,1762774246536,-309.05464648,0.00024792,2]
[393531590,1762774246545,-151.0,0.000248,7]
[393531591,1762774246555,-151.0,0.000248,7]
[393531592,1762774246566,-151.0,0.000248,7]
[393531593,1762774246576,-151.0,0.000248,7]
[393531594,1762774246585,-151.0,0.000248,7]
[393531595,1762774246594,-151.0,0.000248,7]
[393531596,1762774246603,-151.0,0.000248,2]
[393531597,1762774246692,-151.0,0.000248,2]
[393531598,1762774246703,-151.0,0.000248,2]
[393531599,1762774246711,-151.0,0.000248,7]
[393531600,1762774246720,-151.0,0.000248,7]
[393531601,1762774246730,-154.608511,0.000248,7]
[393531602,1762774246739,-158.199281,0.000248,7]
[393531603,1762774246748,-151.0,0.000248,7]
[393531604,1762774246757,-151.0,0.000248,7]
[393531605,1762774246766,-151.0,0.000248,7]
[393531606,1762774246775,-290.753076,0.000248,7]
[393531607,1762774246784,-159.28468,0.000248,7]
[393531608,1762774246794,-151.0,0.000248,7]
[393531609,1762774246803,-151.0,0.000248,7]
[393531610,1762774246814,-153.279844,0.000248,7]
[393531611,1762774246823,-151.0,0.000248,7]
[393531612,1762774246832,-151.0,0.000248,7]
[393531613,1762774246840,-151.0,0.000248,7]
[393531614,1762774246850,-151.0,0.000248,7]
[393531615,1762774246860,-151.0,0.000248,7]
[393531616,1762774246868,-151.0,0.000248,7]
[393531617,1762774246877,-151.0,0.000248,7]
[393531618,1762774246887,-151.0,0.000248,7]
[393531619,1762774246897,-151.0,0.000248,7]
[393531620,1762774246907,-151.0,0.000248,7]
[393531621,1762774246916,-151.0,0.000248,7]
[393531622,1762774246925,-151.0,0.000248,7]
[393531623,1762774246934,-151.0,0.000248,7]
[393531624,1762774246943,-151.0,0.000248,7]
[393531625,1762774246952,-150.0,0.00024873,2]
[393531626,1762774246961,-150.0,0.00024873,2]
[393531627,1762774246970,-196.094384,0.0002489,10]
[393531628,1762774246980,-15485.72,0.000249,7]
[393531629,1762774246989,-173.814937,0.000249,7]
[393531630,1762774246998,-151.0,0.000249,7]
[393531631,1762774247007,-151.0,0.000249,7]
[393531632,1762774247016,-151.0,0.000249,7]
[393531633,1762774247025,-151.0,0.000249,7]
[393531634,1762774247034,-151.0,0.000249,7]
[393531635,1762774247043,-234.773306,0.000249,7]
[393531636,1762774247052,-234.773306,0.000249,7]
[393531637,1762774247063,-234.773306,0.000249,7]
[393531638,1762774247072,-234.773306,0.000249,7]
[393531639,1762774247081,-151.0,0.000249,7]
[393531640,1762774247090,-151.553525,0.000249,7]
[393531641,1762774247099,-151.0,0.000249,7]
[393531642,1762774247109,-151.0,0.000249,7]
[393531643,1762774247118,-151.0,0.000249,7]
[393531644,1762774247128,-163.100671,0.000249,7]
[393531645,1762774247137,-151.0,0.000249,7]
[393531646,1762774247146,-151.0,0.000249,7]
[393531647,1762774247155,-151.0,0.000249,7]
[393531648,1762774247165,-151.0,0.000249,7]
[393531649,1762774247174,-151.0,0.000249,7]
[393531650,1762774247184,-205.030635,0.000249,7]
[393531651,1762774247194,-151.0,0.000249,7]
[393531652,1762774247208,-414.140533,0.000249,7]
[393531653,1762774247218,-414.140533,0.000249,7]
[393531654,1762774247228,-414.140533,0.000249,7]
[393531655,1762774247237,-414.140533,0.000249,7]
[393531656,1762774247248,-152.99819,0.000249,7]
[393531657,1762774247258,-399.99776637,0.000249,7]
[393531658,1762774247268,-219241.23317839,0.000249,2]
[393531659,1762774247284,-418.93857618,0.000249,2]
[393531660,1762774247300,-1656.06,0.000249,2]
[393531661,1762774247313,-23984.71076384,0.000249,2]
[393531662,1762774247326,-10938.93993464,0.000249,2]
[393531663,1762774247361,-306.67887392,0.00021952,2]
[393531664,1762774247371,-842.81,0.00022538,10]
[393531665,1762774247380,-306.67887392,0.00023672,2]
[393531666,1762774247390,-2586.03225129,0.000249,2]
[393531667,1762774247405,-10310.16204709,0.000249,2]
[393531713,1762775223131,522.87,0.00026257,120]
[393531798,1762775291437,2290.0,0.00032877,120]
[393531828,1762775431810,-240.43717317,0.00020182,2]
[393531829,1762775431820,-227.85470466,0.00020232,2]
[393531830,1762775431829,-300.0,0.00020282,2]
[393531831,1762775431839,-500.0,0.00020283,2]
[393531832,1762775431848,-500.0,0.00020283,2]
[393531833,1762775431857,-116.19385667,0.00020283,2]
[393531834,1762775431868,-306.47404511,0.00020283,2]
[393531835,1762775431915,-281.5353016,0.00020283,2]
[393532177,1762775443036,-3317.14679662,0.00020283,2]
[393532180,1762775443051,-4021.35,0.00020283,2]
[393532182,1762775443061,-224.754757,0.00020973,2]
[393532184,1762775443070,-500.0,0.00020998,2]
[393532186,1762775443079,-500.0,0.00020998,2]
[393532188,1762775443088,-644.01146725,0.00020999,2]
[393532190,1762775443100,-48435.05792506,0.00020999,2]
[393532192,1762775443109,-4021.35,0.00020999,2]
[393532194,1762775443119,-901.54267218,0.00021,4]
[393532197,1762775443128,-2314.82117328,0.00021308,2]
[393532199,1762775443137,-1224.01465861,0.00021409,2]
[393532201,1762775443147,-435.05382688,0.00021473,2]
[393532203,1762775443156,-509.04784384,0.00021473,2]
[393532205,1762775443165,-500.0,0.00021473,2]
[393532207,1762775443174,-500.0,0.00021473,2]
[393532209,1762775443184,-222.00075868,0.00021473,2]
[393532212,1762775443193,-500.0,0.00021813,2]
[393532215,1762775443203,-500.0,0.00021813,2]
[393532218,1762775443212,-500.0,0.00021813,2]
[393532220,1762775443221,-500.0,0.00021999,2]
[393532222,1762775443230,-752.8481206,0.00022,5]
[393532310,1762775446213,-247.1518794,0.00022,5]
[393532312,1762775446222,-521.05625835,0.00022021,2]
[393532313,1762775446232,-503.12613602,0.00022033,2]
[393532314,1762775446241,-500.0,0.00022073,2]
[393532315,1762775446250,-500.0,0.00022073,2]
[393532316,1762775446259,-420.0,0.00022078,2]
[393532317,1762775446268,-160.0,0.000221,2]
[393532318,1762775446277,-268.8685515,0.00022232,2]
[393532319,1762775446287,-500.0,0.0002236,2]
[393532320,1762775446296,-1000.0,0.0002236,2]
[393532321,1762775446305,-1000.0,0.0002236,2]
[393532322,1762775446314,-500.0,0.00022413,2]
[393532323,1762775446324,-500.0,0.00022413,2]
[393532324,1762775446333,-500.0,0.00022472,2]
[393532325,1762775446342,-4021.35,0.00022472,2]
[393532326,1762775446352,-203.963776,0.00022526,10]
[393532327,1762775446362,-4521.34,0.00022537,3]
[393532328,1762775446371,-2260.67,0.00022537,3]
[393532329,1762775446380,-918.75897433,0.00022537,3]
[393532330,1762775446391,-211.57102567,0.00022537,3]
[393532331,1762775446400,-534.54963383,0.00022537,3]
[393532332,1762775446412,-30.62036617,0.00022537,3]
[393532333,1762775446422,-282.58,0.00022537,3]
[393532334,1762775446431,-396.42979693,0.00022537,3]
[393532335,1762775446531,-451.36020307,0.00022537,3]
[393532336,1762775446541,-362.47758955,0.00022546,2]
[393532337,1762775446551,-500.0,0.00022546,2]
[393532338,1762775446564,-328.4796743,0.00022546,2]
[393532339,1762775446573,-195.44299184,0.00022547,2]
[393532340,1762775446583,-475.89181769,0.00022547,2]
[393532378,1762776632081,-217.92023954,0.00020384,2]
[393532381,1762776632095,-300.0,0.00021751,2]
[393532383,1762776632107,-1363.79221296,0.00021752,2]
[393532505,1762776637917,-217.92023954,0.00021068,2]
[393532506,1762776637928,-465.96818323,0.00021752,2]
[393532507,1762776637941,-1058.23592004,0.00021752,2]
[393532511,1762776640178,-380.00040936,0.00021752,2]
[393532512,1762776640233,-7797.04930034,0.00021752,2]
[393532513,1762776640242,-172.905253,0.00021753,2]
[393532514,1762776640251,-160.0,0.00022293,2]
[393532515,1762776640260,-160.0,0.00022293,2]
[393532516,1762776640269,-1450.19353066,0.00022373,2]
[393532517,1762776640278,-2920.03,0.00022437,3]
[393532518,1762776640287,-1460.01,0.00022437,3]
[393532519,1762776640296,-608.58910936,0.00022437,3]
[393532521,1762776640377,-121.42089064,0.00022437,3]
[393532522,1762776640386,-365.0,0.00022437,3]
[393532523,1762776640396,-182.5,0.00022437,3]
[393532524,1762776640405,-547.53,0.00022437,3]
[393532525,1762776640414,-693.97,0.00022437,10]
[393532526,1762776640423,-253.73431268,0.00022446,2]
[393532527,1762776640432,-29320.17929643,0.00022447,2]
[393532528,1762776640443,-2224.845,0.00022447,2]
[393532534,1762776643598,-963.63518554,0.00022437,10]
[393532535,1762776643757,-236.60481446,0.00022437,10]
[393532536,1762776643767,-963.39587009,0.00022447,2]
[393532543,1762776923621,415.819822,0.00013699,2]
[393532575,1762777561287,298.772143,0.00032877,120]
[393532584,1762777720780,-1517277.10725075,0.00037167,20]
[393532585,1762777720825,-500.0,0.00037167,60]
[393532586,1762777720866,-507.26111804,0.00037167,60]
[393532587,1762777720910,-500.0,0.00037167,60]
[393532588,1762777720953,-500.0,0.00037167,60]
[393532589,1762777720996,-500.0,0.00037167,60]
[393532590,1762777721041,-500.0,0.00037167,60]
[393532591,1762777721085,-500.0,0.00037167,60]
[393532592,1762777721129,-500.0,0.00037167,60]
[393532593,1762777721172,-500.0,0.00037167,60]
[393532594,1762777721217,-500.0,0.00037167,60]
[393532595,1762777721266,-257.50701788,0.00037167,60]
[393532596,1762777721308,-500.0,0.00037167,60]
[393532597,1762777721352,-500.0,0.00037167,60]
[393532598,1762777721393,-500.0,0.00037167,60]
[393532599,1762777721432,-500.0,0.00037167,60]
[393532600,1762777721472,-497.16531164,0.00037167,60]
[393532601,1762777721512,-400.411767,0.00037167,60]
[393532602,1762777721552,-500.0,0.00037167,60]
[393532603,1762777721591,-500.0,0.00037167,60]
[393532604,1762777721630,-500.0,0.00037167,60]
[393532605,1762777721669,-500.0,0.00037167,60]
[393532606,1762777721707,-500.0,0.00037167,60]
[393532607,1762777721747,-500.0,0.00037167,60]
[393532608,1762777721788,-500.0,0.00037167,60]
[393532609,1762777721830,-500.0,0.00037167,60]
[393532610,1762777721871,-500.0,0.00037167,60]
[393532611,1762777721914,-500.0,0.00037167,60]
[393532612,1762777721955,-500.0,0.00037167,60]
[393532613,1762777721996,-500.0,0.00037167,60]
[393532614,1762777722130,-500.0,0.00037167,60]
[393532615,1762777722180,-500.0,0.00037167,60]
[393532616,1762777722222,-500.0,0.00037167,60]
[393532617,1762777722264,-500.0,0.00037167,120]
[393532618,1762777722305,-500.0,0.00037167,120]
[393532619,1762777722357,-500.0,0.00037167,120]
[393532620,1762777722404,-500.0,0.00037167,120]
[393532621,1762777722447,-500.0,0.00037167,120]
[393532622,1762777722490,-500.0,0.00037167,120]
[393532623,1762777722533,-500.0,0.00037167,120]
[393532624,1762777722581,-500.0,0.00037167,120]
[393532625,1762777722622,-196.865,0.00037167,120]
[393532626,1762777722663,-2690.9675181,0.00037167,35]
[393532627,1762777722702,-500.0,0.00037167,60]
[393532628,1762777722743,-500.0,0.00037167,60]
[393532629,1762777722782,-500.0,0.00037167,60]
[393532630,1762777722821,-500.0,0.00037167,60]
[393532631,1762777722860,-500.0,0.00037167,60]
[393532632,1762777722899,-500.0,0.00037167,60]
[393532633,1762777722940,-281.19816962,0.00037167,60]
[393532634,1762777722981,-500.0,0.00037167,60]
[393532635,1762777723023,-500.0,0.00037167,60]
[393532636,1762777723068,-500.0,0.00037167,60]
[393532637,1762777723111,-500.0,0.00037167,60]
[393532638,1762777723153,-500.0,0.00037167,60]
[393532639,1762777723193,-500.0,0.00037167,60]
[393532640,1762777723232,-500.0,0.00037167,60]
[393532641,1762777723274,-500.0,0.00037167,60]
[393532642,1762777723312,-610.28,0.00037167,60]
[393532643,1762777723359,-500.0,0.00037167,60]
[393532644,1762777723397,-500.0,0.00037167,60]
[393532645,1762777723436,-500.0,0.00037167,60]
[393532646,1762777723475,-600.00168328,0.00037167,60]
[393532647,1762777723515,-500.0,0.00037167,60]
[393532648,1762777723554,-500.0,0.00037167,60]
[393532649,1762777723594,-500.0,0.00037167,60]
[393532650,1762777723635,-500.0,0.00037167,60]
[393532651,1762777723675,-500.0,0.00037167,60]
[393532652,1762777723717,-500.0,0.00037167,60]
[393532653,1762777723758,-500.0,0.00037167,60]
[393532654,1762777723799,-500.0,0.00037167,60]
[393532655,1762777723840,-500.0,0.00037167,60]
[393532656,1762777723887,-500.0,0.00037167,60]
[393532657,1762777723927,-500.0,0.00037167,60]
[393532658,1762777723968,-500.0,0.00037167,60]
[393532659,1762777724011,-480.19819983,0.00037167,60]
[393532660,1762777724054,-541.743467,0.00037167,60]
[393532661,1762777724098,-680.9,0.00037167,30]
[393532662,1762777724138,-11918.45745143,0.00037167,60]
[393532663,1762777724179,-6049.32807643,0.00037167,60]
[393532664,1762777724220,-896.2,0.00037167,30]
[393532665,1762777724262,-896.2,0.00037167,30]
[393532666,1762777724304,-896.2,0.00037167,30]
[393532667,1762777724345,-896.2,0.00037167,30]
[393532668,1762777724387,-896.2,0.00037167,30]
[393532669,1762777724429,-896.2,0.00037167,30]
[393532670,1762777724478,-896.2,0.00037167,30]
[393532671,1762777724519,-896.2,0.00037167,30]
[393532672,1762777724558,-896.2,0.00037167,30]
[393532673,1762777724596,-896.2,0.00037167,30]
[393532674,1762777724633,-896.2,0.00037167,30]
[393532675,1762777724670,-896.2,0.00037167,30]
[393532676,1762777724707,-896.2,0.00037167,30]
[393532677,1762777724744,-896.2,0.00037167,30]
[393532678,1762777724782,-896.2,0.00037167,30]
[393532679,1762777724821,-896.2,0.00037167,30]
[393532680,1762777724858,-896.2,0.00037167,30]
[393532681,1762777724898,-896.2,0.00037167,30]
[393532682,1762777724941,-896.2,0.00037167,30]
[393532683,1762777724983,-896.2,0.00037167,30]
[393532684,1762777725026,-896.2,0.00037167,30]
[393532685,1762777725070,-896.2,0.00037167,30]
[393532686,1762777725118,-896.2,0.00037167,30]
[393532687,1762777725161,-896.32301652,0.00037167,30]
[393532688,1762777725201,-500.0,0.00037167,60]
[393532689,1762777725334,-500.0,0.00037167,60]
[393532690,1762777725375,-508.39709927,0.00037167,60]
[393532691,1762777725416,-821.36,0.00037167,30]
[393532692,1762777725459,-821.36,0.00037167,30]
[393532693,1762777725500,-821.36,0.00037167,30]
[393532694,1762777725541,-821.36,0.00037167,30]
[393532695,1762777725581,-821.36,0.00037167,30]
[393532696,1762777725623,-821.36,0.00037167,30]
[393532697,1762777725664,-821.36,0.00037167,30]
[393532698,1762777725704,-821.36,0.00037167,30]
[393532699,1762777725744,-821.36,0.00037167,30]
[393532700,1762777725784,-821.36,0.00037167,30]
[393532701,1762777725824,-821.36,0.00037167,30]
[393532702,1762777725866,-821.36,0.00037167,30]
[393532703,1762777725906,-821.36,0.00037167,30]
[393532704,1762777725947,-821.36,0.00037167,30]
[393532705,1762777725990,-821.36,0.00037167,30]
[393532706,1762777726033,-821.36,0.00037167,30]
[393532707,1762777726077,-821.36,0.00037167,30]
[393532708,1762777726120,-821.36,0.00037167,30]
[393532709,1762777726165,-821.36,0.00037167,30]
[393532710,1762777726207,-821.36,0.00037167,30]
[393532711,1762777726248,-821.36,0.00037167,30]
[393532712,1762777726289,-821.36,0.00037167,30]
[393532713,1762777726331,-821.36,0.00037167,30]
[393532714,1762777726373,-821.55659503,0.00037167,30]
[393532715,1762777726415,-500.0,0.00037167,60]
[393532716,1762777726455,-501.81803998,0.00037167,60]
[393532717,1762777726498,-501.60899115,0.00037167,60]
[393532718,1762777726541,-500.0,0.00037167,60]
[393532719,1762777726583,-505.14886751,0.00037167,60]
[393532720,1762777726625,-500.0,0.00037167,60]
[393532721,1762777726667,-500.0,0.00037167,30]
[393532722,1762777726708,-500.0,0.00037167,30]
[393532723,1762777726751,-500.0,0.00037167,30]
[393532724,1762777726793,-500.0,0.00037167,30]
[393532725,1762777726835,-500.0,0.00037167,30]
[393532726,1762777726875,-500.0,0.00037167,30]
[393532727,1762777726916,-500.0,0.00037167,30]
[393532728,1762777726958,-513.59355483,0.00037167,30]
[393532729,1762777727000,-500.0,0.00037167,60]
[393532730,1762777727043,-500.0,0.00037167,60]
[393532731,1762777727093,-500.0,0.00037167,60]
[393532732,1762777727145,-500.0,0.00037167,60]
[393532733,1762777727191,-495.79769387,0.00037167,60]
[393532734,1762777727239,-469.004176,0.00037167,60]
[393532735,1762777727285,-500.0,0.00037167,60]
[393532736,1762777727331,-500.0,0.00037167,60]
[393532737,1762777727379,-500.0,0.00037167,60]
[393532738,1762777727427,-500.0,0.00037167,60]
[393532739,1762777727472,-636.4719286,0.00037167,60]
[393532740,1762777727519,-503.09458574,0.00037167,60]
[393532741,1762777727566,-506.44380371,0.00037167,60]
[393532742,1762777727614,-500.0,0.00037167,60]
[393532743,1762777727660,-500.0,0.00037167,60]
[393532744,1762777727706,-500.0,0.00037167,60]
[393532745,1762777727751,-422.69166769,0.00037167,60]
[393532746,1762777727799,-480.0,0.00037167,60]
[393532747,1762777727847,-496.58531762,0.00037167,60]
[393532748,1762777727897,-500.0,0.00037167,60]
[393532749,1762777727947,-500.0,0.00037167,60]
[393532750,1762777727993,-502.45846065,0.00037167,60]
[393532751,1762777728037,-503.05416711,0.00037167,60]
[393532752,1762777728085,-507.45914298,0.00037167,60]
[393532753,1762777728136,-203.20807422,0.00037167,60]
[393532754,1762777728181,-245.0937558,0.00037167,120]
[393532755,1762777728227,-274620.31301957,0.00037167,20]
[393532756,1762777728273,-680.86398011,0.00037167,120]
[393532757,1762777728317,-1614.56212656,0.00037167,120]
[393532758,1762777728365,-411.14109443,0.00037167,30]
[393532759,1762777728412,-500.0,0.00037167,60]
[393532760,1762777728457,-500.0,0.00037167,60]
[393532761,1762777728501,-500.0,0.00037167,60]
[393532762,1762777728547,-585.73016802,0.00037167,60]
[393532763,1762777728593,-200.0,0.00037167,30]
[393534848,1762777807642,2000.0,0.00037167,120]
[393534865,1762777808334,2000.0,0.00037167,120]
[393534929,1762777811227,2000.0,0.00037167,120]
[393534945,1762777811871,2000.0,0.00037167,120]
[393534962,1762777812547,2000.0,0.00037167,120]
[393534978,1762777813317,301.1433787,0.00037167,120]
[393535421,1762777832202,-209.20342995,0.00020187,2]
[393535423,1762777832212,-55.14464204,0.00020187,2]
[393535567,1762777838169,-360.67517996,0.00020187,2]
[393535568,1762777838180,-4488.84404236,0.00021,5]
[393535569,1762777838189,-224.7547572,0.00021164,2]
[393535570,1762777838199,-160.0,0.00022169,2]
[393535572,1762777838208,-246.86004735,0.00022187,2]
[393535573,1762777838217,-2025.46852662,0.00022273,2]
[393535574,1762777838227,-1126.39050463,0.00022273,2]
[393535575,1762777838236,-151.57,0.000223,2]
[393535576,1762777838246,-503.47225909,0.00022337,2]
[393535578,1762777838255,-3219.797268,0.00022337,2]
[393535579,1762777838265,-1064.22,0.00022337,10]
[393535580,1762777838274,-500.0,0.00022346,2]
[393535581,1762777838284,-500.0,0.00022346,2]
[393535584,1762777838293,-563.37798704,0.00022346,2]
[393535586,1762777838302,-546.85464247,0.00022346,2]
[393535587,1762777838312,-300.0,0.00022346,2]
[393535588,1762777838322,-500.0,0.00022346,2]
[393535590,1762777838335,-430.02593877,0.00022346,2]
[393535591,1762777838347,-177.61401888,0.00022346,2]
[393535592,1762777838356,-679152.59133207,0.00022347,2]
[393535718,1762777843353,-886.85,0.00022337,10]
[393535720,1762777843363,-40095.48754294,0.00022347,2]
[393535792,1762777846550,-389.12771925,0.00022347,2]
[393536019,1762777855902,2000.0,0.00037167,20]
[393536462,1762777875642,2000.0,0.00037167,20]
[393536654,1762777883673,200.0,0.00037167,30]
[393536889,1762777895204,2000.0,0.00037167,20]
[393537459,1762778063910,2000.0,0.0003714,20]
[393537460,1762778066506,1639.04,0.00032877,120]
[393537461,1762778084291,2000.0,0.0003714,20]
[393537462,1762778108100,2000.0,0.0003714,120]
[393537463,1762778182625,200.0,0.0003714,30]
[393537464,1762778311075,176.14029771,0.00032794,120]
[393537465,1762778481161,200.0,0.00037155,30]
[393537466,1762778536087,1901.16406625,0.00037155,30]
[393537467,1762778590653,500100.0,0.00037155,30]